[Event "Late-Titled-Tuesday-Blitz-July-09-2024"]
[Site "Chess.com"]
[Date "2024.07.09"]
[Round "10"]
[White "lluiss"]
[Black "JEHUBNER"]
[Result "1-0"]
[WhiteElo "2204"]
[BlackElo "2024"]
[TimeControl "180+1"]
[EndTime "15:54:26 PDT"]
[Termination "lluiss won by checkmate"]

1. Nf3 {[%clk 0:03:00.9]} 1... Nf6 {[%clk 0:02:53.6]} 2. d4 {[%clk 0:02:59.9]}
2... d5 {[%clk 0:02:46.8]} 3. c4 {[%clk 0:02:59.6]} 3... c6 {[%clk 0:02:46.7]}
4. cxd5 {[%clk 0:02:59.4]} 4... cxd5 {[%clk 0:02:47.6]} 5. Nc3 {[%clk
0:02:59.5]} 5... e6 {[%clk 0:02:47.7]} 6. Bf4 {[%clk 0:02:59.4]} 6... Bd6 {[%clk
0:02:47.7]} 7. Bxd6 {[%clk 0:02:59.3]} 7... Qxd6 {[%clk 0:02:47.7]} 8. e3 {[%clk
0:02:59.2]} 8... O-O {[%clk 0:02:47.2]} 9. Be2 {[%clk 0:02:58.8]} 9... a6 {[%clk
0:02:46.1]} 10. O-O {[%clk 0:02:57.9]} 10... b5 {[%clk 0:02:44.9]} 11. a3 {[%clk
0:02:57.2]} 11... Nbd7 {[%clk 0:02:44.9]} 12. b4 {[%clk 0:02:52.3]} 12... e5
{[%clk 0:02:43.5]} 13. dxe5 {[%clk 0:02:49.1]} 13... Nxe5 {[%clk 0:02:44.4]} 14.
Rc1 {[%clk 0:02:34.5]} 14... Bg4 {[%clk 0:02:34.9]} 15. Nxe5 {[%clk 0:02:19.1]}
15... Bxe2 {[%clk 0:02:34.6]} 16. Nxf7 {[%clk 0:02:07.6]} 16... Qxh2+ {[%clk
0:02:00.3]} 17. Kxh2 {[%clk 0:02:04.4]} 17... Bxd1 {[%clk 0:02:00.7]} 18. Rfxd1
{[%clk 0:02:04.5]} 18... Rxf7 {[%clk 0:02:00.6]} 19. Kg1 {[%clk 0:01:43.2]}
19... Rd8 {[%clk 0:01:44.9]} 20. Rd2 {[%clk 0:01:35.6]} 20... Rfd7 {[%clk
0:01:40]} 21. Rcd1 {[%clk 0:01:34.7]} 21... Kf7 {[%clk 0:01:40.6]} 22. f3 {[%clk
0:01:21]} 22... Ke6 {[%clk 0:01:35.5]} 23. Kf2 {[%clk 0:01:20.5]} 23... Ke5
{[%clk 0:01:15.2]} 24. Rd4 {[%clk 0:01:20.1]} 24... Rc8 {[%clk 0:01:01]} 25.
R1d3 {[%clk 0:01:14.4]} 25... Rc4 {[%clk 0:00:48.2]} 26. Ke2 {[%clk 0:00:46.9]}
26... Rdc7 {[%clk 0:00:39.9]} 27. Nxd5 {[%clk 0:00:33.2]} 27... Rc2+ {[%clk
0:00:36.3]} 28. Kf1 {[%clk 0:00:28.3]} 28... Rc1+ {[%clk 0:00:36.4]} 29. Kf2
{[%clk 0:00:28.4]} 29... R7c2+ {[%clk 0:00:36.7]} 30. Kg3 {[%clk 0:00:26.4]}
30... Nh5+ {[%clk 0:00:35.5]} 31. Kh2 {[%clk 0:00:26.3]} 31... Ra1 {[%clk
0:00:26.2]} 32. Nf4 {[%clk 0:00:24.6]} 32... Nf6 {[%clk 0:00:17.8]} 33. Kg3
{[%clk 0:00:19.7]} 33... Rcc1 {[%clk 0:00:18.2]} 34. Nd5 {[%clk 0:00:18.6]}
34... Nh5+ {[%clk 0:00:17.7]} 35. Kg4 {[%clk 0:00:18]} 35... Rh1 {[%clk
0:00:16.2]} 36. Re4+ {[%clk 0:00:16.5]} 36... Kd6 {[%clk 0:00:15.5]} 37. Nf4+
{[%clk 0:00:15.6]} 37... Kc6 {[%clk 0:00:09.8]} 38. Nxh5 {[%clk 0:00:15.5]}
38... Rag1 {[%clk 0:00:09.9]} 39. g3 {[%clk 0:00:14.7]} 39... g6 {[%clk
0:00:10.1]} 40. Nf4 {[%clk 0:00:14.7]} 40... h5+ {[%clk 0:00:10.5]} 41. Kg5
{[%clk 0:00:06.6]} 41... Rxg3+ {[%clk 0:00:11.1]} 42. Kf6 {[%clk 0:00:06.7]}
42... h4 {[%clk 0:00:11.7]} 43. Re6+ {[%clk 0:00:04.6]} 43... Kc7 {[%clk
0:00:11.4]} 44. Ke7 {[%clk 0:00:03.7]} 44... h3 {[%clk 0:00:11.8]} 45. Rd7+
{[%clk 0:00:03.5]} 45... Kc8 {[%clk 0:00:11.4]} 46. Rc6+ {[%clk 0:00:03.6]}
46... Kb8 {[%clk 0:00:10.9]} 47. Nd5 {[%clk 0:00:03.5]} 47... Rxf3 {[%clk
0:00:07.7]} 48. Rb6+ {[%clk 0:00:02.6]} 48... Kc8 {[%clk 0:00:06.7]} 49. Rc7#
{[%clk 0:00:02.1]} 1-0

[Event "Late-Titled-Tuesday-Blitz-July-09-2024"]
[Site "Chess.com"]
[Date "2024.07.09"]
[Round "10"]
[White "Mikhal867"]
[Black "ManMish2"]
[Result "0-1"]
[WhiteElo "2460"]
[BlackElo "2603"]
[TimeControl "180+1"]
[EndTime "15:54:32 PDT"]
[Termination "ManMish2 won by resignation"]

1. c4 {[%clk 0:02:55.9]} 1... e5 {[%clk 0:02:59.7]} 2. Nc3 {[%clk 0:02:55.4]}
2... Nc6 {[%clk 0:02:59.6]} 3. g3 {[%clk 0:02:55]} 3... g6 {[%clk 0:02:59.4]} 4.
Bg2 {[%clk 0:02:54.8]} 4... Bg7 {[%clk 0:02:59.9]} 5. e3 {[%clk 0:02:54.6]} 5...
Nge7 {[%clk 0:03:00.2]} 6. Nge2 {[%clk 0:02:54.2]} 6... O-O {[%clk 0:03:00]} 7.
Rb1 {[%clk 0:02:53.4]} 7... a5 {[%clk 0:02:58.3]} 8. a3 {[%clk 0:02:53]} 8... d6
{[%clk 0:02:55.6]} 9. d3 {[%clk 0:02:50.5]} 9... Be6 {[%clk 0:02:51.5]} 10. Nd5
{[%clk 0:02:50.2]} 10... f5 {[%clk 0:02:33.2]} 11. O-O {[%clk 0:02:45.8]} 11...
Qd7 {[%clk 0:02:19.5]} 12. f4 {[%clk 0:02:43.2]} 12... Bxd5 {[%clk 0:02:14]} 13.
cxd5 {[%clk 0:02:42.3]} 13... Nd8 {[%clk 0:02:14.1]} 14. e4 {[%clk 0:02:37.7]}
14... Nf7 {[%clk 0:02:04.5]} 15. Be3 {[%clk 0:02:32.6]} 15... c6 {[%clk
0:01:57.2]} 16. a4 {[%clk 0:02:16.2]} 16... cxd5 {[%clk 0:01:53.3]} 17. exd5
{[%clk 0:02:16.3]} 17... b5 {[%clk 0:01:34.7]} 18. Nc3 {[%clk 0:02:09.1]} 18...
bxa4 {[%clk 0:01:31.7]} 19. Qxa4 {[%clk 0:02:02.3]} 19... Qxa4 {[%clk 0:01:31]}
20. Nxa4 {[%clk 0:02:02.4]} 20... exf4 {[%clk 0:01:30.4]} 21. gxf4 {[%clk
0:01:58]} 21... Nh6 {[%clk 0:01:27.9]} 22. h3 {[%clk 0:01:54.4]} 22... Rab8
{[%clk 0:01:21.6]} 23. b3 {[%clk 0:01:46.9]} 23... Rb4 {[%clk 0:01:07.4]} 24.
Nb6 {[%clk 0:01:41]} 24... Bd4 {[%clk 0:01:05.3]} 25. Bxd4 {[%clk 0:01:34.8]}
25... Rxd4 {[%clk 0:01:06.2]} 26. Nc4 {[%clk 0:01:30.2]} 26... Nxd5 {[%clk
0:01:01.5]} 27. Nxa5 {[%clk 0:01:18.7]} 27... Nc3 {[%clk 0:00:43]} 28. Rb2
{[%clk 0:01:05.6]} 28... Re8 {[%clk 0:00:32.8]} 29. b4 {[%clk 0:00:59]} 29...
Ne2+ {[%clk 0:00:28.7]} 30. Kh2 {[%clk 0:00:58.4]} 30... Nxf4 {[%clk 0:00:19.3]}
31. b5 {[%clk 0:00:57.6]} 31... Nxg2 {[%clk 0:00:15.2]} 32. Kxg2 {[%clk
0:00:57.2]} 32... Rxd3 {[%clk 0:00:15.4]} 33. b6 {[%clk 0:00:56.3]} 33... Rc3
{[%clk 0:00:14.5]} 34. b7 {[%clk 0:00:43.2]} 34... Rb8 {[%clk 0:00:15]} 35. Rb6
{[%clk 0:00:42.9]} 35... Nf7 {[%clk 0:00:14.5]} 36. Rh1 {[%clk 0:00:36.3]} 36...
Nd8 {[%clk 0:00:13.3]} 37. Nc6 {[%clk 0:00:37.2]} 37... Nxc6 {[%clk 0:00:13.3]}
38. Rd1 {[%clk 0:00:36.4]} 38... Nd8 {[%clk 0:00:13.5]} 39. Rdxd6 {[%clk
0:00:35.3]} 39... Nxb7 {[%clk 0:00:13.5]} 40. Rd7 {[%clk 0:00:35.2]} 40... Re3
{[%clk 0:00:10.7]} 41. Rbxb7 {[%clk 0:00:34.7]} 41... Rxb7 {[%clk 0:00:11.6]}
42. Rxb7 {[%clk 0:00:35]} 42... Re6 {[%clk 0:00:11.6]} 43. Rc7 {[%clk 0:00:35]}
43... Rf6 {[%clk 0:00:12]} 44. Rd7 {[%clk 0:00:35.2]} 44... Rf7 {[%clk
0:00:12.5]} 45. Rd8+ {[%clk 0:00:35.3]} 45... Kg7 {[%clk 0:00:13.1]} 46. Rd6
{[%clk 0:00:35.9]} 46... h6 {[%clk 0:00:13.3]} 47. Kf3 {[%clk 0:00:36.2]} 47...
g5 {[%clk 0:00:13.3]} 48. Re6 {[%clk 0:00:36.2]} 48... Rf6 {[%clk 0:00:13.8]}
49. Re7+ {[%clk 0:00:36.5]} 49... Kg6 {[%clk 0:00:14.2]} 50. Re8 {[%clk
0:00:36.6]} 50... Ra6 {[%clk 0:00:14.6]} 51. Rg8+ {[%clk 0:00:36.6]} 51... Kh5
{[%clk 0:00:15]} 52. Rf8 {[%clk 0:00:35.9]} 52... Ra3+ {[%clk 0:00:15.2]} 53.
Kg2 {[%clk 0:00:36.2]} 53... f4 {[%clk 0:00:10.7]} 54. Rh8 {[%clk 0:00:36.2]}
54... Ra2+ {[%clk 0:00:09.8]} 55. Kg1 {[%clk 0:00:33.9]} 55... Rb2 {[%clk
0:00:07.9]} 56. Kh1 {[%clk 0:00:33.8]} 56... Kh4 {[%clk 0:00:06.2]} 57. Rh7
{[%clk 0:00:31.4]} 57... Kg3 {[%clk 0:00:06]} 0-1

[Event "Late-Titled-Tuesday-Blitz-July-09-2024"]
[Site "Chess.com"]
[Date "2024.07.09"]
[Round "10"]
[White "rionelG"]
[Black "WilsonPalencia21"]
[Result "0-1"]
[WhiteElo "2406"]
[BlackElo "2577"]
[TimeControl "180+1"]
[EndTime "15:54:32 PDT"]
[Termination "WilsonPalencia21 won on time"]

1. e4 {[%clk 0:03:00.9]} 1... c5 {[%clk 0:02:48.2]} 2. Nf3 {[%clk 0:03:00.8]}
2... d6 {[%clk 0:02:48.6]} 3. d4 {[%clk 0:03:00.3]} 3... cxd4 {[%clk 0:02:49.5]}
4. Nxd4 {[%clk 0:03:00.3]} 4... Nf6 {[%clk 0:02:49.7]} 5. Nc3 {[%clk 0:03:00.4]}
5... g6 {[%clk 0:02:50.1]} 6. Be3 {[%clk 0:02:53.8]} 6... Bg7 {[%clk 0:02:50.3]}
7. Be2 {[%clk 0:02:53.8]} 7... O-O {[%clk 0:02:49.6]} 8. f4 {[%clk 0:02:52.9]}
8... Nc6 {[%clk 0:02:49.7]} 9. O-O {[%clk 0:02:48.4]} 9... Qb6 {[%clk
0:02:42.1]} 10. Na4 {[%clk 0:02:28.5]} 10... Qa5 {[%clk 0:02:35.9]} 11. Nc3
{[%clk 0:02:18.3]} 11... Qb6 {[%clk 0:02:34.6]} 12. Na4 {[%clk 0:02:16.8]} 12...
Qa5 {[%clk 0:02:34.5]} 13. Nc3 {[%clk 0:02:16.6]} 13... Nxd4 {[%clk 0:02:35]}
14. Bxd4 {[%clk 0:02:15.9]} 14... e5 {[%clk 0:02:34.3]} 15. fxe5 {[%clk
0:02:05.7]} 15... dxe5 {[%clk 0:02:32.4]} 16. Be3 {[%clk 0:02:05.4]} 16... Be6
{[%clk 0:02:31.9]} 17. Qe1 {[%clk 0:01:48.6]} 17... Rac8 {[%clk 0:02:27.3]} 18.
Kh1 {[%clk 0:01:46.7]} 18... Rxc3 {[%clk 0:02:24.3]} 19. bxc3 {[%clk 0:01:45.7]}
19... Nxe4 {[%clk 0:02:23]} 20. c4 {[%clk 0:01:40.9]} 20... Qxe1 {[%clk
0:02:11.3]} 21. Rfxe1 {[%clk 0:01:39.4]} 21... b6 {[%clk 0:02:11]} 22. Bf3
{[%clk 0:01:38.4]} 22... Nc3 {[%clk 0:01:50.6]} 23. c5 {[%clk 0:01:34.6]} 23...
e4 {[%clk 0:01:50.4]} 24. Bd1 {[%clk 0:01:24.3]} 24... bxc5 {[%clk 0:01:32.3]}
25. Bxc5 {[%clk 0:01:23.9]} 25... Rc8 {[%clk 0:01:32.1]} 26. Bxa7 {[%clk
0:01:21.5]} 26... Nb5 {[%clk 0:01:30.2]} 27. Be2 {[%clk 0:01:01.3]} 27... Nxa7
{[%clk 0:01:25.2]} 28. Rab1 {[%clk 0:00:56.9]} 28... Bxa2 {[%clk 0:01:20.4]} 29.
Rb7 {[%clk 0:00:53.8]} 29... Nc6 {[%clk 0:01:19.1]} 30. c4 {[%clk 0:00:45.7]}
30... Nd4 {[%clk 0:01:10.3]} 31. Bf1 {[%clk 0:00:28]} 31... Bxc4 {[%clk
0:01:08]} 32. Rc1 {[%clk 0:00:20.1]} 32... Be6 {[%clk 0:00:40.4]} 33. Rxc8+
{[%clk 0:00:16.7]} 33... Bxc8 {[%clk 0:00:40.6]} 34. Rb8 {[%clk 0:00:17.4]}
34... Be5 {[%clk 0:00:34.6]} 35. Rxc8+ {[%clk 0:00:17.3]} 35... Kg7 {[%clk
0:00:33.8]} 36. g3 {[%clk 0:00:16]} 36... e3 {[%clk 0:00:31.5]} 37. Rc1 {[%clk
0:00:12]} 37... e2 {[%clk 0:00:30.5]} 38. Bxe2 {[%clk 0:00:11.5]} 38... Nxe2
{[%clk 0:00:30.7]} 39. Re1 {[%clk 0:00:12]} 39... Nxg3+ {[%clk 0:00:31]} 40.
hxg3 {[%clk 0:00:12.1]} 40... Bxg3 {[%clk 0:00:30.8]} 41. Rd1 {[%clk 0:00:12.3]}
41... h5 {[%clk 0:00:29.4]} 42. Kg2 {[%clk 0:00:13.2]} 42... h4 {[%clk
0:00:29.9]} 43. Kf3 {[%clk 0:00:11.9]} 43... f5 {[%clk 0:00:29.5]} 44. Rd7+
{[%clk 0:00:10.3]} 44... Kf6 {[%clk 0:00:29.8]} 45. Rd8 {[%clk 0:00:09.4]} 45...
Be5 {[%clk 0:00:23.2]} 46. Kg2 {[%clk 0:00:06.9]} 46... Kg5 {[%clk 0:00:21.5]}
47. Rc8 {[%clk 0:00:05.6]} 47... Kg4 {[%clk 0:00:20]} 48. Re8 {[%clk 0:00:05]}
48... Bf4 {[%clk 0:00:19.5]} 49. Kh1 {[%clk 0:00:03.5]} 49... g5 {[%clk
0:00:19.5]} 50. Re1 {[%clk 0:00:03.3]} 50... Bg3 {[%clk 0:00:19.3]} 51. Rd1
{[%clk 0:00:03]} 51... f4 {[%clk 0:00:19.6]} 52. Rd4 {[%clk 0:00:03.1]} 52... h3
{[%clk 0:00:19.1]} 53. Rc4 {[%clk 0:00:02.5]} 53... Bf2 {[%clk 0:00:18.5]} 54.
Re4 {[%clk 0:00:02.5]} 54... Kg3 {[%clk 0:00:18.3]} 55. Re6 {[%clk 0:00:02]}
55... g4 {[%clk 0:00:18.5]} 56. Rg6 {[%clk 0:00:02.2]} 56... Kf3 {[%clk
0:00:18.7]} 0-1

[Event "Late-Titled-Tuesday-Blitz-July-09-2024"]
[Site "Chess.com"]
[Date "2024.07.09"]
[Round "10"]
[White "slidingknight2775"]
[Black "ExchangeAB"]
[Result "1-0"]
[WhiteElo "2733"]
[BlackElo "2483"]
[TimeControl "180+1"]
[EndTime "15:54:33 PDT"]
[Termination "slidingknight2775 won by resignation"]

1. c4 {[%clk 0:03:00.9]} 1... c6 {[%clk 0:02:59.6]} 2. e4 {[%clk 0:02:54.5]}
2... d5 {[%clk 0:03:00.5]} 3. exd5 {[%clk 0:02:55.4]} 3... cxd5 {[%clk
0:03:00.7]} 4. d4 {[%clk 0:02:56.3]} 4... Nf6 {[%clk 0:03:00.9]} 5. Nc3 {[%clk
0:02:55.4]} 5... g6 {[%clk 0:03:01.4]} 6. Qb3 {[%clk 0:02:55.7]} 6... Bg7 {[%clk
0:03:01.4]} 7. cxd5 {[%clk 0:02:56.3]} 7... O-O {[%clk 0:03:01.7]} 8. Be2 {[%clk
0:02:56.8]} 8... Na6 {[%clk 0:03:01.8]} 9. Bf3 {[%clk 0:02:54.4]} 9... Qb6
{[%clk 0:03:00.9]} 10. Nge2 {[%clk 0:02:26.1]} 10... Qxb3 {[%clk 0:02:57.8]} 11.
axb3 {[%clk 0:02:27]} 11... Nb4 {[%clk 0:02:58.2]} 12. O-O {[%clk 0:02:24.5]}
12... Rd8 {[%clk 0:02:54.1]} 13. Bg5 {[%clk 0:02:10.1]} 13... Nbxd5 {[%clk
0:02:36.1]} 14. Nxd5 {[%clk 0:02:05.4]} 14... Nxd5 {[%clk 0:02:37]} 15. Nc3
{[%clk 0:01:53.3]} 15... Nf6 {[%clk 0:02:27]} 16. d5 {[%clk 0:01:35.3]} 16... h6
{[%clk 0:02:19.6]} 17. Be3 {[%clk 0:01:32]} 17... a6 {[%clk 0:02:15]} 18. h3
{[%clk 0:01:30.6]} 18... Ne8 {[%clk 0:02:02.1]} 19. b4 {[%clk 0:01:26.8]} 19...
Nd6 {[%clk 0:01:58.4]} 20. Bc5 {[%clk 0:01:12]} 20... Bf5 {[%clk 0:01:49.7]} 21.
Rfe1 {[%clk 0:01:08.1]} 21... Bf6 {[%clk 0:01:46.2]} 22. Rad1 {[%clk 0:01:03.3]}
22... Rab8 {[%clk 0:01:29.3]} 23. g4 {[%clk 0:00:53.4]} 23... Bc2 {[%clk
0:01:19.6]} 24. Rd2 {[%clk 0:00:53.1]} 24... Bb3 {[%clk 0:01:19.2]} 25. Ne4
{[%clk 0:00:30.6]} 25... Nxe4 {[%clk 0:01:11.2]} 26. Bxe4 {[%clk 0:00:31.5]}
26... b6 {[%clk 0:01:03.1]} 27. Be3 {[%clk 0:00:30.1]} 27... Kg7 {[%clk
0:00:58.8]} 28. Rc1 {[%clk 0:00:22.7]} 28... a5 {[%clk 0:00:50.7]} 29. b5 {[%clk
0:00:15.4]} 29... g5 {[%clk 0:00:31.3]} 30. Rc6 {[%clk 0:00:13.3]} 30... Rd6
{[%clk 0:00:25.2]} 31. f4 {[%clk 0:00:05.3]} 31... Ba4 {[%clk 0:00:16.7]} 32.
fxg5 {[%clk 0:00:04.3]} 32... hxg5 {[%clk 0:00:16.6]} 33. Rxd6 {[%clk
0:00:04.4]} 33... exd6 {[%clk 0:00:16.2]} 34. Bd3 {[%clk 0:00:03.2]} 34... Bb3
{[%clk 0:00:07.8]} 35. Be2 {[%clk 0:00:01.6]} 35... a4 {[%clk 0:00:06.8]} 36.
Kf2 {[%clk 0:00:02.2]} 36... Bd8 {[%clk 0:00:05.5]} 37. Bd4+ {[%clk 0:00:02.8]}
37... f6 {[%clk 0:00:05.2]} 38. Rd3 {[%clk 0:00:02.5]} 38... Rc8 {[%clk
0:00:05.4]} 39. Rc3 {[%clk 0:00:02.6]} 39... Rc5 {[%clk 0:00:05]} 40. Bxc5
{[%clk 0:00:02.8]} 40... dxc5 {[%clk 0:00:05.9]} 41. d6 {[%clk 0:00:03.5]} 41...
Kf7 {[%clk 0:00:05.3]} 42. Bc4+ {[%clk 0:00:04.1]} 42... Bxc4 {[%clk 0:00:04.9]}
43. Rxc4 {[%clk 0:00:05]} 43... Ke6 {[%clk 0:00:05.5]} 44. Rxa4 {[%clk
0:00:05.7]} 44... Kxd6 {[%clk 0:00:06.1]} 45. Ke3 {[%clk 0:00:06.3]} 45... Kd5
{[%clk 0:00:05.6]} 46. Kd3 {[%clk 0:00:06.9]} 46... Bc7 {[%clk 0:00:05.8]} 47.
b3 {[%clk 0:00:07.4]} 47... Bd8 {[%clk 0:00:05.2]} 48. Ra7 {[%clk 0:00:07.3]}
48... Kd6 {[%clk 0:00:05.2]} 49. Rb7 {[%clk 0:00:07.1]} 49... Ke6 {[%clk
0:00:05.2]} 50. Ke4 {[%clk 0:00:07.3]} 50... Kd6 {[%clk 0:00:04]} 51. Rh7 {[%clk
0:00:07.9]} 51... Ke6 {[%clk 0:00:04.2]} 52. Rh8 {[%clk 0:00:08.5]} 52... Be7
{[%clk 0:00:04.4]} 53. Rb8 {[%clk 0:00:08.7]} 53... c4 {[%clk 0:00:04.7]} 54.
Rxb6+ {[%clk 0:00:07.9]} 1-0

[Event "Late-Titled-Tuesday-Blitz-July-09-2024"]
[Site "Chess.com"]
[Date "2024.07.09"]
[Round "10"]
[White "KebabJangles"]
[Black "ninguno46"]
[Result "1-0"]
[WhiteElo "2404"]
[BlackElo "2561"]
[TimeControl "180+1"]
[EndTime "15:54:33 PDT"]
[Termination "KebabJangles won on time"]

1. d4 {[%clk 0:03:00.9]} 1... Nf6 {[%clk 0:02:59.1]} 2. c4 {[%clk 0:03:00.6]}
2... e6 {[%clk 0:02:59.5]} 3. g3 {[%clk 0:02:55.9]} 3... Bb4+ {[%clk 0:02:59.5]}
4. Nd2 {[%clk 0:02:52.6]} 4... c5 {[%clk 0:02:56.2]} 5. a3 {[%clk 0:02:51.3]}
5... Bxd2+ {[%clk 0:02:56.1]} 6. Qxd2 {[%clk 0:02:51.7]} 6... cxd4 {[%clk
0:02:56.5]} 7. Nf3 {[%clk 0:02:50.6]} 7... Nc6 {[%clk 0:02:44.9]} 8. Nxd4 {[%clk
0:02:49.6]} 8... O-O {[%clk 0:02:29.5]} 9. Nxc6 {[%clk 0:02:48.5]} 9... bxc6
{[%clk 0:02:29.1]} 10. c5 {[%clk 0:02:40.9]} 10... Ne4 {[%clk 0:01:48.3]} 11.
Qd4 {[%clk 0:02:40.3]} 11... f5 {[%clk 0:01:47.8]} 12. f3 {[%clk 0:02:40.1]}
12... Nf6 {[%clk 0:01:42.6]} 13. Bf4 {[%clk 0:02:36.4]} 13... Re8 {[%clk
0:01:37]} 14. Bd6 {[%clk 0:02:36.4]} 14... Ba6 {[%clk 0:01:32.7]} 15. e4 {[%clk
0:02:36.2]} 15... Bxf1 {[%clk 0:01:31.7]} 16. Kxf1 {[%clk 0:02:36.2]} 16... Qa5
{[%clk 0:01:24.9]} 17. Kg2 {[%clk 0:02:30.9]} 17... Qb5 {[%clk 0:01:22]} 18.
Rhe1 {[%clk 0:02:30.4]} 18... a5 {[%clk 0:01:17.6]} 19. Kf2 {[%clk 0:02:23.4]}
19... fxe4 {[%clk 0:01:16.7]} 20. fxe4 {[%clk 0:02:22.8]} 20... e5 {[%clk
0:01:13.9]} 21. Qc3 {[%clk 0:02:16.9]} 21... Re6 {[%clk 0:01:11.5]} 22. Kg2
{[%clk 0:02:04.4]} 22... Ra7 {[%clk 0:01:06.6]} 23. b4 {[%clk 0:01:43.6]} 23...
axb4 {[%clk 0:01:03.8]} 24. axb4 {[%clk 0:01:44.5]} 24... Rxa1 {[%clk
0:01:03.2]} 25. Rxa1 {[%clk 0:01:44.1]} 25... Qe2+ {[%clk 0:01:01.8]} 26. Kh3
{[%clk 0:01:40.1]} 26... Ng4 {[%clk 0:00:58.8]} 27. Ra8+ {[%clk 0:00:53.4]}
27... Kf7 {[%clk 0:00:58.2]} 28. Qf3+ {[%clk 0:00:53.4]} 28... Qxf3 {[%clk
0:00:51.7]} 29. Rf8+ {[%clk 0:00:54.3]} 29... Kg6 {[%clk 0:00:51.7]} 30. Rxf3
{[%clk 0:00:55.2]} 30... Nf6 {[%clk 0:00:51.1]} 31. Re3 {[%clk 0:00:53.7]} 31...
Re8 {[%clk 0:00:50.9]} 32. Kg2 {[%clk 0:00:49.7]} 32... Kf7 {[%clk 0:00:50.4]}
33. Kf3 {[%clk 0:00:48.5]} 33... Ke6 {[%clk 0:00:50.8]} 34. Ra3 {[%clk
0:00:47.9]} 34... g5 {[%clk 0:00:33.6]} 35. h3 {[%clk 0:00:46.4]} 35... h5
{[%clk 0:00:33.2]} 36. Ra2 {[%clk 0:00:27.9]} 36... Rg8 {[%clk 0:00:32.1]} 37.
Rh2 {[%clk 0:00:10.3]} 37... g4+ {[%clk 0:00:31.1]} 38. hxg4 {[%clk 0:00:09]}
38... Rxg4 {[%clk 0:00:31.5]} 39. Rh4 {[%clk 0:00:09.9]} 39... Rg6 {[%clk
0:00:18.8]} 40. Bf8 {[%clk 0:00:08]} 40... Rg8 {[%clk 0:00:15.4]} 41. Bd6 {[%clk
0:00:07.6]} 41... Ra8 {[%clk 0:00:14.9]} 42. Rh2 {[%clk 0:00:05.7]} 42... Ra3+
{[%clk 0:00:14.4]} 43. Kg2 {[%clk 0:00:05.3]} 43... Ra2+ {[%clk 0:00:11.2]} 44.
Kh3 {[%clk 0:00:05.4]} 44... Rxh2+ {[%clk 0:00:11.2]} 45. Kxh2 {[%clk
0:00:06.3]} 45... Nxe4 {[%clk 0:00:11.5]} 46. Bf8 {[%clk 0:00:06.9]} 46... Kf5
{[%clk 0:00:08.4]} 47. Kg2 {[%clk 0:00:06.3]} 47... Nc3 {[%clk 0:00:06.6]} 48.
Bh6 {[%clk 0:00:06.3]} 48... Ke4 {[%clk 0:00:02.5]} 49. Kf2 {[%clk 0:00:05.3]}
49... Kd3 {[%clk 0:00:01.2]} 50. Bg7 {[%clk 0:00:04.2]} 1-0

[Event "Late-Titled-Tuesday-Blitz-July-09-2024"]
[Site "Chess.com"]
[Date "2024.07.09"]
[Round "10"]
[White "Yahisalem"]
[Black "amelia91"]
[Result "0-1"]
[WhiteElo "1940"]
[BlackElo "2087"]
[TimeControl "180+1"]
[EndTime "15:54:38 PDT"]
[Termination "amelia91 won by resignation"]

1. e4 {[%clk 0:02:56.9]} 1... c5 {[%clk 0:02:59.6]} 2. Nf3 {[%clk 0:02:56.9]}
2... d6 {[%clk 0:02:59.9]} 3. d4 {[%clk 0:02:57]} 3... cxd4 {[%clk 0:03:00.8]}
4. Nxd4 {[%clk 0:02:57.8]} 4... Nf6 {[%clk 0:03:01.4]} 5. Nc3 {[%clk 0:02:57.8]}
5... Nc6 {[%clk 0:03:02]} 6. Bb5 {[%clk 0:02:55.8]} 6... Bd7 {[%clk 0:03:02.3]}
7. Bxc6 {[%clk 0:02:53.3]} 7... bxc6 {[%clk 0:03:03.2]} 8. O-O {[%clk
0:02:52.2]} 8... e5 {[%clk 0:02:55.7]} 9. Nf5 {[%clk 0:02:46.7]} 9... Bxf5
{[%clk 0:02:55.5]} 10. exf5 {[%clk 0:02:47.6]} 10... Be7 {[%clk 0:02:55.5]} 11.
Bg5 {[%clk 0:02:43]} 11... O-O {[%clk 0:02:54.9]} 12. Bxf6 {[%clk 0:02:42.4]}
12... Bxf6 {[%clk 0:02:54.9]} 13. Ne4 {[%clk 0:02:42.4]} 13... d5 {[%clk
0:02:52.1]} 14. Ng3 {[%clk 0:02:39]} 14... Rb8 {[%clk 0:02:50.1]} 15. b3 {[%clk
0:02:36]} 15... e4 {[%clk 0:02:43.6]} 16. Rb1 {[%clk 0:02:35.3]} 16... Qd7
{[%clk 0:02:36.4]} 17. Qg4 {[%clk 0:02:34.1]} 17... Kh8 {[%clk 0:02:31.8]} 18.
Nh5 {[%clk 0:02:32.7]} 18... Be5 {[%clk 0:02:31.6]} 19. f4 {[%clk 0:02:20.4]}
19... Bd4+ {[%clk 0:02:27.2]} 20. Kh1 {[%clk 0:02:18.9]} 20... g6 {[%clk
0:02:22.3]} 21. Ng3 {[%clk 0:01:59.6]} 21... Bg7 {[%clk 0:02:10.2]} 22. h3
{[%clk 0:01:56.2]} 22... Rbd8 {[%clk 0:02:05.8]} 23. Rbd1 {[%clk 0:01:55.3]}
23... Qe7 {[%clk 0:01:46]} 24. fxg6 {[%clk 0:01:46.1]} 24... fxg6 {[%clk
0:01:44.1]} 25. f5 {[%clk 0:01:41.9]} 25... Rd6 {[%clk 0:01:17.7]} 26. Ne2
{[%clk 0:01:24.6]} 26... gxf5 {[%clk 0:01:03.3]} 27. Rxf5 {[%clk 0:01:22.2]}
27... Rdf6 {[%clk 0:01:00.2]} 28. Rdf1 {[%clk 0:01:21.4]} 28... Rxf5 {[%clk
0:00:54]} 29. Rxf5 {[%clk 0:01:20.7]} 29... Rxf5 {[%clk 0:00:54.2]} 30. Qxf5
{[%clk 0:01:21.3]} 30... Qf6 {[%clk 0:00:43.6]} 31. Qxf6 {[%clk 0:01:13.6]}
31... Bxf6 {[%clk 0:00:43.8]} 32. g4 {[%clk 0:01:14]} 32... Kg7 {[%clk
0:00:39.1]} 33. Kg2 {[%clk 0:01:14.4]} 33... Kf7 {[%clk 0:00:37]} 34. Kg3 {[%clk
0:01:14.5]} 34... Ke6 {[%clk 0:00:37.1]} 35. c3 {[%clk 0:01:09.2]} 35... Ke5
{[%clk 0:00:36.3]} 36. h4 {[%clk 0:01:07.3]} 36... c5 {[%clk 0:00:35.5]} 37. g5
{[%clk 0:01:05.2]} 37... Bd8 {[%clk 0:00:35.5]} 38. Kg4 {[%clk 0:01:05.2]} 38...
d4 {[%clk 0:00:34.7]} 39. cxd4+ {[%clk 0:00:57.7]} 39... cxd4 {[%clk 0:00:35.6]}
40. h5 {[%clk 0:00:52.7]} 40... d3 {[%clk 0:00:33.8]} 41. Nc3 {[%clk 0:00:37]}
41... e3 {[%clk 0:00:20.5]} 42. Kf3 {[%clk 0:00:35.9]} 42... e2 {[%clk 0:00:20]}
43. Nxe2 {[%clk 0:00:32.4]} 43... dxe2 {[%clk 0:00:20]} 44. Kxe2 {[%clk
0:00:32.7]} 44... Bxg5 {[%clk 0:00:20.2]} 45. Kd3 {[%clk 0:00:31.7]} 45... Kd5
{[%clk 0:00:19.5]} 46. a3 {[%clk 0:00:27]} 46... Bc1 {[%clk 0:00:17.7]} 47. a4
{[%clk 0:00:25.6]} 47... Kc5 {[%clk 0:00:17.5]} 48. Kc3 {[%clk 0:00:25.1]} 48...
a5 {[%clk 0:00:17.7]} 49. Kc2 {[%clk 0:00:24.1]} 49... Bg5 {[%clk 0:00:17.1]}
50. Kc3 {[%clk 0:00:24.4]} 50... Bf6+ {[%clk 0:00:17.2]} 51. Kd3 {[%clk
0:00:24.1]} 51... Kb4 {[%clk 0:00:17.2]} 52. Kc2 {[%clk 0:00:24.2]} 52... h6
{[%clk 0:00:16.5]} 53. Kd3 {[%clk 0:00:23]} 53... Kxb3 {[%clk 0:00:17]} 54. Kd2
{[%clk 0:00:21.1]} 54... Kxa4 {[%clk 0:00:16.9]} 55. Kc2 {[%clk 0:00:21.6]}
55... Kb4 {[%clk 0:00:16.5]} 0-1